[Event "GrandPrix_30.05"]
[Site "Chess.com"]
[Date "2020.05.30"]
[Round "5"]
[White "anesar92"]
[Black "WoodlandMagic"]
[Result "1-0"]
[WhiteElo "2419"]
[BlackElo "2117"]
[TimeControl "600+2"]
[EndTime "10:23:53 PDT"]
[Termination "anesar92 won by resignation"]

1. e4 {[%clk 0:10:01.9]} 1... e5 {[%clk 0:09:47.2]} 2. Nf3 {[%clk 0:10:01.5]}
2... Nc6 {[%clk 0:09:47.5]} 3. Bb5 {[%clk 0:10:00.6]} 3... a6 {[%clk 0:09:47.5]}
4. Ba4 {[%clk 0:09:56]} 4... Nf6 {[%clk 0:09:47.9]} 5. O-O {[%clk 0:09:56.8]}
5... b5 {[%clk 0:09:48.6]} 6. Bb3 {[%clk 0:09:57.5]} 6... Bc5 {[%clk 0:09:50.1]}
7. a4 {[%clk 0:09:54.1]} 7... Rb8 {[%clk 0:09:48.9]} 8. axb5 {[%clk 0:09:54.2]}
8... axb5 {[%clk 0:09:49.6]} 9. Nxe5 {[%clk 0:09:55]} 9... Nxe5 {[%clk
0:09:48.2]} 10. d4 {[%clk 0:09:56.3]} 10... Bxd4 {[%clk 0:09:49.4]} 11. Qxd4
{[%clk 0:09:58.2]} 11... d6 {[%clk 0:09:50.8]} 12. f4 {[%clk 0:09:58.8]} 12...
c5 {[%clk 0:09:51.2]} 13. Qd1 {[%clk 0:09:22.9]} 13... Nc6 {[%clk 0:09:10.5]}
14. e5 {[%clk 0:08:59.4]} 14... dxe5 {[%clk 0:08:59.6]} 15. Qxd8+ {[%clk
0:08:57.8]} 15... Nxd8 {[%clk 0:08:28.3]} 16. fxe5 {[%clk 0:08:51.4]} 16... Nd7
{[%clk 0:08:02]} 17. Bxf7+ {[%clk 0:07:17.4]} 17... Nxf7 {[%clk 0:07:58.6]} 18.
e6 {[%clk 0:07:18.3]} 18... Nf6 {[%clk 0:06:57.5]} 19. exf7+ {[%clk 0:07:14.8]}
19... Kxf7 {[%clk 0:06:58.4]} 20. Nc3 {[%clk 0:07:07.5]} 20... Kg6 {[%clk
0:06:45.5]} 21. Bf4 {[%clk 0:06:49.1]} 21... Rb6 {[%clk 0:05:53.3]} 22. Be3
{[%clk 0:06:45.4]} 22... Bf5 {[%clk 0:04:49.7]} 23. Bxc5 {[%clk 0:06:01.2]}
23... Rc6 {[%clk 0:04:22.1]} 24. b4 {[%clk 0:05:55.3]} 24... Bxc2 {[%clk
0:04:17]} 25. Nxb5 {[%clk 0:05:53.5]} 25... Bd3 {[%clk 0:03:52.4]} 26. Nd4
{[%clk 0:05:51.9]} 26... Rxc5 {[%clk 0:03:29]} 27. bxc5 {[%clk 0:05:18.5]} 27...
Bxf1 {[%clk 0:03:24.1]} 28. Rxf1 {[%clk 0:04:56.6]} 28... Rd8 {[%clk 0:02:46.5]}
29. Rf4 {[%clk 0:04:30]} 29... Nd5 {[%clk 0:02:10.6]} 30. Rg4+ {[%clk 0:04:29]}
30... Kf6 {[%clk 0:02:08.1]} 31. h3 {[%clk 0:04:09.2]} 31... h5 {[%clk 0:01:16]}
32. Re4 {[%clk 0:03:45.7]} 32... Ne7 {[%clk 0:00:34.3]} 33. Re6+ {[%clk
0:03:27.3]} 33... Kf7 {[%clk 0:00:10.8]} 34. Rxe7+ {[%clk 0:03:27.6]} 34... Kxe7
{[%clk 0:00:10.2]} 35. Nc6+ {[%clk 0:03:28.9]} 35... Kd7 {[%clk 0:00:08]} 36.
Nxd8 {[%clk 0:03:30.8]} 36... Kxd8 {[%clk 0:00:09.9]} 37. Kf2 {[%clk 0:03:31.7]}
37... Kd7 {[%clk 0:00:09.8]} 38. Ke3 {[%clk 0:03:29.9]} 38... Kc6 {[%clk
0:00:10.9]} 39. Kd4 {[%clk 0:03:30.8]} 39... g5 {[%clk 0:00:11.2]} 40. g4 {[%clk
0:03:30.2]} 40... hxg4 {[%clk 0:00:12.1]} 41. hxg4 {[%clk 0:03:32.1]} 41... Kc7
{[%clk 0:00:13.4]} 42. Kd5 {[%clk 0:03:32.1]} 42... Kd7 {[%clk 0:00:14.3]} 43.
Ke5 {[%clk 0:03:32.1]} 43... Kc6 {[%clk 0:00:15.2]} 44. Kf5 {[%clk 0:03:31.4]}
44... Kxc5 {[%clk 0:00:15.9]} 45. Kxg5 {[%clk 0:03:32.2]} 45... Kd6 {[%clk
0:00:17.2]} 46. Kf6 {[%clk 0:03:33.6]} 1-0

[Event "GrandPrix_30.05"]
[Site "Chess.com"]
[Date "2020.05.30"]
[Round "5"]
[White "am00ss00"]
[Black "Borisss85"]
[Result "0-1"]
[WhiteElo "2046"]
[BlackElo "2186"]
[TimeControl "600+2"]
[EndTime "10:23:58 PDT"]
[Termination "Borisss85 won by checkmate"]

1. e4 {[%clk 0:09:36.6]} 1... c5 {[%clk 0:10:00.3]} 2. Nc3 {[%clk 0:09:37.1]}
2... Nc6 {[%clk 0:10:00.6]} 3. g3 {[%clk 0:09:37.2]} 3... g6 {[%clk 0:10:01.3]}
4. Bg2 {[%clk 0:09:38.4]} 4... Bg7 {[%clk 0:10:02.5]} 5. d3 {[%clk 0:09:39.3]}
5... d6 {[%clk 0:10:01.6]} 6. f4 {[%clk 0:09:39.1]} 6... e6 {[%clk 0:10:02]} 7.
Be3 {[%clk 0:09:36.8]} 7... Nge7 {[%clk 0:10:02.3]} 8. Qd2 {[%clk 0:09:37.4]}
8... O-O {[%clk 0:10:01.4]} 9. Nf3 {[%clk 0:09:38.2]} 9... Nd4 {[%clk
0:10:01.3]} 10. O-O {[%clk 0:09:38.2]} 10... Rb8 {[%clk 0:09:55.4]} 11. Rae1
{[%clk 0:09:35.9]} 11... b5 {[%clk 0:09:53]} 12. Nh4 {[%clk 0:09:28.8]} 12... f5
{[%clk 0:08:39.8]} 13. exf5 {[%clk 0:09:28.9]} 13... Nexf5 {[%clk 0:08:29.8]}
14. Nxf5 {[%clk 0:09:29.2]} 14... gxf5 {[%clk 0:08:21.2]} 15. Ne2 {[%clk
0:08:36.3]} 15... Nxe2+ {[%clk 0:08:03]} 16. Rxe2 {[%clk 0:08:31.6]} 16... Qf6
{[%clk 0:07:51.6]} 17. c3 {[%clk 0:07:49.1]} 17... b4 {[%clk 0:07:51.8]} 18. d4
{[%clk 0:07:46.7]} 18... bxc3 {[%clk 0:07:38.2]} 19. bxc3 {[%clk 0:07:46.8]}
19... Ba6 {[%clk 0:07:39.2]} 20. Rfe1 {[%clk 0:07:30]} 20... Bxe2 {[%clk
0:07:36.2]} 21. Qxe2 {[%clk 0:07:29.2]} 21... Rfe8 {[%clk 0:07:10.1]} 22. Qc4
{[%clk 0:07:24.7]} 22... Kh8 {[%clk 0:07:02.4]} 23. Qa6 {[%clk 0:06:04]} 23...
cxd4 {[%clk 0:06:32.5]} 24. Bxd4 {[%clk 0:05:56.4]} 24... e5 {[%clk 0:06:33.1]}
25. Bxa7 {[%clk 0:05:47.9]} 25... exf4 {[%clk 0:06:09]} 26. Rd1 {[%clk
0:04:51.2]} 26... Rb2 {[%clk 0:05:16.2]} 27. Bd4 {[%clk 0:04:46.6]} 27... Qe7
{[%clk 0:05:04]} 28. Bxg7+ {[%clk 0:04:00.3]} 28... Kxg7 {[%clk 0:05:02.4]} 29.
gxf4 {[%clk 0:02:53.6]} 29... Qe3+ {[%clk 0:04:31.9]} 30. Kh1 {[%clk 0:02:52.4]}
30... Qf2 {[%clk 0:04:25.7]} 31. Rg1 {[%clk 0:02:23.6]} 31... Re1 {[%clk
0:04:23]} 32. Bf1+ {[%clk 0:02:21.9]} 32... Kf7 {[%clk 0:02:45.2]} 33. Bc4+
{[%clk 0:01:39.3]} 33... Ke7 {[%clk 0:02:35.7]} 34. Rxe1+ {[%clk 0:00:52.5]}
34... Qxe1+ {[%clk 0:02:35.4]} 35. Bf1 {[%clk 0:00:53.4]} 35... Qe4+ {[%clk
0:02:31.7]} 36. Kg1 {[%clk 0:00:50.8]} 36... Qe3+ {[%clk 0:02:31.2]} 37. Kh1
{[%clk 0:00:50.8]} 37... Qf3+ {[%clk 0:02:30.1]} 38. Kg1 {[%clk 0:00:42.1]}
38... Qf2+ {[%clk 0:02:30.7]} 39. Kh1 {[%clk 0:00:41.1]} 39... Qxh2# {[%clk
0:02:31.2]} 0-1

[Event "GrandPrix_30.05"]
[Site "Chess.com"]
[Date "2020.05.30"]
[Round "5"]
[White "fujiwara_hoga"]
[Black "dosto07"]
[Result "1-0"]
[WhiteElo "2128"]
[BlackElo "1810"]
[TimeControl "600+2"]
[EndTime "10:24:02 PDT"]
[Termination "fujiwara_hoga won by resignation"]

1. d4 {[%clk 0:10:01.9]} 1... d5 {[%clk 0:09:58.6]} 2. c4 {[%clk 0:10:00.2]}
2... dxc4 {[%clk 0:09:48.8]} 3. e3 {[%clk 0:09:57.9]} 3... Nf6 {[%clk
0:09:48.7]} 4. Bxc4 {[%clk 0:09:57]} 4... e6 {[%clk 0:09:47.6]} 5. Nf3 {[%clk
0:09:56.6]} 5... c5 {[%clk 0:09:46.4]} 6. O-O {[%clk 0:09:51.5]} 6... a6 {[%clk
0:09:43.6]} 7. dxc5 {[%clk 0:09:48.7]} 7... Bxc5 {[%clk 0:09:42.4]} 8. Qxd8+
{[%clk 0:09:47.3]} 8... Kxd8 {[%clk 0:09:40.2]} 9. a3 {[%clk 0:09:45.3]} 9... b5
{[%clk 0:09:27.5]} 10. Be2 {[%clk 0:09:44.7]} 10... Bb7 {[%clk 0:09:24.4]} 11.
b4 {[%clk 0:09:43.5]} 11... Bd6 {[%clk 0:09:24.7]} 12. Bb2 {[%clk 0:09:42.8]}
12... Nbd7 {[%clk 0:09:24.8]} 13. Nbd2 {[%clk 0:09:41.2]} 13... Ke7 {[%clk
0:09:24.9]} 14. Nb3 {[%clk 0:09:39.8]} 14... Rac8 {[%clk 0:08:22.4]} 15. Rac1
{[%clk 0:09:29.7]} 15... e5 {[%clk 0:06:56.2]} 16. Na5 {[%clk 0:09:20.6]} 16...
Bd5 {[%clk 0:06:46.6]} 17. Nd2 {[%clk 0:08:36.2]} 17... e4 {[%clk 0:05:06.6]}
18. f4 {[%clk 0:07:54.6]} 18... h5 {[%clk 0:04:54.9]} 19. Ndb3 {[%clk
0:06:42.8]} 19... Bxb3 {[%clk 0:03:27.2]} 20. Nxb3 {[%clk 0:06:39.5]} 20... Nd5
{[%clk 0:02:17.4]} 21. Bd4 {[%clk 0:05:42.6]} 21... f6 {[%clk 0:01:53.2]} 22.
Na5 {[%clk 0:05:16.6]} 22... Nb8 {[%clk 0:01:48]} 23. Rfd1 {[%clk 0:04:44.2]}
23... g6 {[%clk 0:01:30.3]} 24. Kf2 {[%clk 0:04:22.1]} 24... Rhd8 {[%clk
0:01:27.5]} 25. Nb7 {[%clk 0:04:13.6]} 25... Rg8 {[%clk 0:00:46.5]} 26. Rxc8
{[%clk 0:02:39.6]} 26... Rxc8 {[%clk 0:00:44.3]} 27. Ba1 {[%clk 0:02:32.6]}
27... Rc2 {[%clk 0:00:11.6]} 28. Rxd5 {[%clk 0:02:23.7]} 28... Bc7 {[%clk
0:00:12.6]} 29. Rc5 {[%clk 0:02:18.3]} 29... Bb6 {[%clk 0:00:12.1]} 30. Rxc2
{[%clk 0:02:17.4]} 1-0

[Event "GrandPrix_30.05"]
[Site "Chess.com"]
[Date "2020.05.30"]
[Round "5"]
[White "Haapana"]
[Black "hubertsmazak"]
[Result "0-1"]
[WhiteElo "2350"]
[BlackElo "2247"]
[TimeControl "600+2"]
[EndTime "10:24:04 PDT"]
[Termination "hubertsmazak won by resignation"]

1. d4 {[%clk 0:10:01.3]} 1... Nf6 {[%clk 0:10:00.5]} 2. c4 {[%clk 0:10:01]} 2...
e6 {[%clk 0:10:01.7]} 3. Nf3 {[%clk 0:10:00.9]} 3... d5 {[%clk 0:10:01.8]} 4.
Nc3 {[%clk 0:09:59]} 4... dxc4 {[%clk 0:10:02.3]} 5. e3 {[%clk 0:09:55.6]} 5...
a6 {[%clk 0:10:01.9]} 6. a4 {[%clk 0:09:48.6]} 6... b6 {[%clk 0:10:01.1]} 7.
Bxc4 {[%clk 0:09:48.2]} 7... Bb7 {[%clk 0:10:01.9]} 8. O-O {[%clk 0:09:48.4]}
8... Bb4 {[%clk 0:10:02.8]} 9. Bd2 {[%clk 0:09:22.7]} 9... O-O {[%clk 0:10:03]}
10. Qe2 {[%clk 0:09:18.4]} 10... Nbd7 {[%clk 0:10:03.2]} 11. Rfd1 {[%clk
0:09:15.1]} 11... Qe7 {[%clk 0:10:03.7]} 12. Be1 {[%clk 0:05:29.4]} 12... Rfd8
{[%clk 0:09:40.3]} 13. Rac1 {[%clk 0:04:03.9]} 13... Qf8 {[%clk 0:08:43.6]} 14.
h3 {[%clk 0:03:56.5]} 14... c5 {[%clk 0:08:37.3]} 15. Ne5 {[%clk 0:02:53.3]}
15... Qe7 {[%clk 0:07:20.4]} 16. Nxd7 {[%clk 0:02:19.1]} 16... Rxd7 {[%clk
0:07:17.9]} 17. dxc5 {[%clk 0:02:13.4]} 17... Rxd1 {[%clk 0:07:17.8]} 18. Rxd1
{[%clk 0:01:56.2]} 18... Qxc5 {[%clk 0:07:18.4]} 19. Bd3 {[%clk 0:00:56.1]}
19... g6 {[%clk 0:06:47.1]} 20. e4 {[%clk 0:00:31.8]} 20... Nh5 {[%clk
0:06:40.6]} 21. Bd2 {[%clk 0:00:31.8]} 21... Rd8 {[%clk 0:06:31.9]} 22. Be3
{[%clk 0:00:19.8]} 22... Qa5 {[%clk 0:06:21.5]} 23. Bc2 {[%clk 0:00:18.2]} 23...
Rxd1+ {[%clk 0:06:15.6]} 24. Nxd1 {[%clk 0:00:20.1]} 24... Qe5 {[%clk 0:05:53]}
25. Qd3 {[%clk 0:00:09.4]} 25... Nf4 {[%clk 0:05:43.4]} 26. Qd8+ {[%clk
0:00:04.7]} 26... Bf8 {[%clk 0:05:44.3]} 27. Bxf4 {[%clk 0:00:03.3]} 27... Qxf4
{[%clk 0:05:45.2]} 28. Qd3 {[%clk 0:00:04.4]} 28... Qc1 {[%clk 0:05:26.4]} 29.
Kh2 {[%clk 0:00:03.1]} 29... Bc5 {[%clk 0:05:26.2]} 30. g3 {[%clk 0:00:03.3]}
30... a5 {[%clk 0:05:10.4]} 31. Qd8+ {[%clk 0:00:04]} 31... Kg7 {[%clk
0:05:10.8]} 32. Qd3 {[%clk 0:00:05.9]} 32... Ba6 {[%clk 0:05:08.1]} 33. Qc3+
{[%clk 0:00:06.9]} 33... Kg8 {[%clk 0:05:08.6]} 34. Bb3 {[%clk 0:00:06.4]} 34...
Qxc3 {[%clk 0:05:02]} 35. bxc3 {[%clk 0:00:08.3]} 35... Be2 {[%clk 0:04:48.3]}
36. Ne3 {[%clk 0:00:06.7]} 36... Bf3 {[%clk 0:04:36.4]} 37. Bc2 {[%clk
0:00:07.4]} 37... Be2 {[%clk 0:04:23.1]} 38. Kg2 {[%clk 0:00:07.5]} 38... h5
{[%clk 0:04:15.7]} 39. Nf1 {[%clk 0:00:08.1]} 39... Kf8 {[%clk 0:04:12.7]} 40.
Nd2 {[%clk 0:00:09]} 40... Ke7 {[%clk 0:04:12.1]} 41. e5 {[%clk 0:00:07.5]}
41... b5 {[%clk 0:04:01.3]} 42. axb5 {[%clk 0:00:06.6]} 42... Bxb5 {[%clk
0:04:03.2]} 43. c4 {[%clk 0:00:06.9]} 43... Bc6+ {[%clk 0:03:58.2]} 44. Be4
{[%clk 0:00:07.8]} 44... Bxe4+ {[%clk 0:03:55]} 45. Nxe4 {[%clk 0:00:09.7]}
45... Bd4 {[%clk 0:03:56.4]} 46. f4 {[%clk 0:00:10.8]} 46... a4 {[%clk
0:03:57.6]} 47. Nd2 {[%clk 0:00:09.8]} 47... a3 {[%clk 0:03:58]} 48. Nb3 {[%clk
0:00:04.2]} 48... a2 {[%clk 0:03:59]} 49. g4 {[%clk 0:00:05.5]} 49... hxg4
{[%clk 0:03:58.7]} 50. hxg4 {[%clk 0:00:06]} 50... a1=Q {[%clk 0:04:00.1]} 51.
Nxa1 {[%clk 0:00:06.9]} 51... Bxa1 {[%clk 0:04:02]} 52. Kf3 {[%clk 0:00:07.5]}
52... Kd7 {[%clk 0:04:02.9]} 53. Ke4 {[%clk 0:00:08.8]} 53... Kc6 {[%clk
0:04:03.9]} 54. f5 {[%clk 0:00:08.4]} 54... g5 {[%clk 0:04:05]} 55. fxe6 {[%clk
0:00:09]} 55... fxe6 {[%clk 0:04:06.9]} 0-1

[Event "GrandPrix_30.05"]
[Site "Chess.com"]
[Date "2020.05.30"]
[Round "5"]
[White "DaVinci81"]
[Black "Kobalia"]
[Result "1-0"]
[WhiteElo "2584"]
[BlackElo "2428"]
[TimeControl "600+2"]
[EndTime "10:24:05 PDT"]
[Termination "DaVinci81 won by resignation"]

1. e4 {[%clk 0:10:01.9]} 1... c6 {[%clk 0:09:56]} 2. Nf3 {[%clk 0:09:45.8]} 2...
d5 {[%clk 0:09:55.1]} 3. Nc3 {[%clk 0:09:47.2]} 3... Bg4 {[%clk 0:09:55]} 4. h3
{[%clk 0:09:46.8]} 4... Bxf3 {[%clk 0:09:54.8]} 5. Qxf3 {[%clk 0:09:47.8]} 5...
e6 {[%clk 0:09:56.3]} 6. Be2 {[%clk 0:09:42.9]} 6... Nf6 {[%clk 0:09:53.8]} 7.
O-O {[%clk 0:09:33.3]} 7... Bb4 {[%clk 0:09:52.9]} 8. e5 {[%clk 0:09:10.4]} 8...
Nfd7 {[%clk 0:09:51.9]} 9. Qg3 {[%clk 0:09:08]} 9... O-O {[%clk 0:09:47.7]} 10.
d4 {[%clk 0:09:07.2]} 10... Kh8 {[%clk 0:09:44.8]} 11. Nd1 {[%clk 0:08:38.9]}
11... c5 {[%clk 0:09:35.4]} 12. c3 {[%clk 0:08:38.7]} 12... Ba5 {[%clk
0:09:36.5]} 13. Be3 {[%clk 0:08:23]} 13... Nc6 {[%clk 0:09:25]} 14. dxc5 {[%clk
0:08:10.5]} 14... Ncxe5 {[%clk 0:09:19.8]} 15. f4 {[%clk 0:08:05]} 15... Nc4
{[%clk 0:09:07.4]} 16. Bd4 {[%clk 0:07:03.4]} 16... f6 {[%clk 0:08:58.4]} 17.
Bxc4 {[%clk 0:06:44.8]} 17... dxc4 {[%clk 0:08:57.3]} 18. Ne3 {[%clk 0:06:35.3]}
18... b5 {[%clk 0:06:39.4]} 19. a4 {[%clk 0:06:00.7]} 19... e5 {[%clk
0:05:04.7]} 20. fxe5 {[%clk 0:05:30.4]} 20... fxe5 {[%clk 0:05:03.7]} 21. Rxf8+
{[%clk 0:05:03.4]} 21... Qxf8 {[%clk 0:05:02.7]} 22. Rf1 {[%clk 0:04:25.6]}
22... Qe8 {[%clk 0:04:17.3]} 23. Nf5 {[%clk 0:04:21.4]} 23... Qg6 {[%clk
0:04:14.1]} 24. Be3 {[%clk 0:04:13.4]} 24... bxa4 {[%clk 0:04:00]} 25. Qxg6
{[%clk 0:04:03.1]} 25... hxg6 {[%clk 0:03:58.8]} 26. Nd6 {[%clk 0:04:04.4]}
26... Kg8 {[%clk 0:03:21.6]} 27. Nxc4 {[%clk 0:03:58.5]} 27... Bc7 {[%clk
0:03:19.9]} 28. Ra1 {[%clk 0:03:49.9]} 28... Kf7 {[%clk 0:03:07]} 29. Rxa4
{[%clk 0:03:48.7]} 29... Ke6 {[%clk 0:03:07.6]} 30. Nb6 {[%clk 0:03:12.7]} 30...
Rb8 {[%clk 0:01:25.5]} 31. Rxa7 {[%clk 0:02:32]} 31... Bxb6 {[%clk 0:01:23.1]}
32. cxb6 {[%clk 0:02:32.2]} 32... Kd6 {[%clk 0:01:24]} 33. c4 {[%clk 0:02:20.7]}
33... Rc8 {[%clk 0:01:11.4]} 34. b3 {[%clk 0:02:06.1]} 34... Kc6 {[%clk
0:01:05.8]} 35. b4 {[%clk 0:02:01.2]} 1-0

[Event "GrandPrix_30.05"]
[Site "Chess.com"]
[Date "2020.05.30"]
[Round "5"]
[White "Grebnev_A"]
[Black "Spartakus1975"]
[Result "0-1"]
[WhiteElo "2195"]
[BlackElo "2490"]
[TimeControl "600+2"]
[EndTime "10:24:07 PDT"]
[Termination "Spartakus1975 won by checkmate"]

1. c4 {[%clk 0:10:01.9]} 1... e5 {[%clk 0:09:57.8]} 2. Nc3 {[%clk 0:10:02.8]}
2... Bb4 {[%clk 0:09:57.9]} 3. Nd5 {[%clk 0:10:03.3]} 3... Bc5 {[%clk
0:09:57.9]} 4. g3 {[%clk 0:10:04.1]} 4... c6 {[%clk 0:09:57.8]} 5. Nc3 {[%clk
0:10:03.5]} 5... d5 {[%clk 0:09:56.7]} 6. cxd5 {[%clk 0:10:02.6]} 6... cxd5
{[%clk 0:09:57.7]} 7. Bg2 {[%clk 0:10:03.5]} 7... Nf6 {[%clk 0:09:58]} 8. d3
{[%clk 0:10:00.3]} 8... h6 {[%clk 0:09:55.9]} 9. Nf3 {[%clk 0:09:57.9]} 9... Nc6
{[%clk 0:09:56.2]} 10. O-O {[%clk 0:09:58.9]} 10... d4 {[%clk 0:09:37.4]} 11.
Nb1 {[%clk 0:09:44.1]} 11... O-O {[%clk 0:09:36.8]} 12. Nbd2 {[%clk 0:09:44]}
12... Be6 {[%clk 0:09:20.7]} 13. Nb3 {[%clk 0:09:26.4]} 13... Bd6 {[%clk
0:09:15.5]} 14. Bd2 {[%clk 0:09:25.1]} 14... Qe7 {[%clk 0:09:01.4]} 15. Rc1
{[%clk 0:09:22.6]} 15... a5 {[%clk 0:08:55.6]} 16. a3 {[%clk 0:09:08.1]} 16...
a4 {[%clk 0:08:49.3]} 17. Na1 {[%clk 0:09:09.2]} 17... Rfc8 {[%clk 0:08:42.8]}
18. Nc2 {[%clk 0:09:03.8]} 18... Bb3 {[%clk 0:08:42.9]} 19. Qe1 {[%clk 0:09:05]}
19... Rc7 {[%clk 0:08:27.5]} 20. Nh4 {[%clk 0:08:48.7]} 20... Qe6 {[%clk
0:07:54.4]} 21. Nb4 {[%clk 0:08:47.1]} 21... Bxb4 {[%clk 0:07:07.6]} 22. Bxb4
{[%clk 0:08:45.9]} 22... Rac8 {[%clk 0:07:06.9]} 23. Qd2 {[%clk 0:08:39.3]}
23... Nd5 {[%clk 0:06:42]} 24. Ba5 {[%clk 0:07:58.4]} 24... b6 {[%clk 0:06:15]}
25. Bxd5 {[%clk 0:07:56.9]} 25... Bxd5 {[%clk 0:06:10.5]} 26. Bxb6 {[%clk
0:07:58.3]} 26... Rb7 {[%clk 0:06:11.2]} 27. Bc5 {[%clk 0:07:56.7]} 27... Rcb8
{[%clk 0:06:06.1]} 28. Rc2 {[%clk 0:07:55.1]} 28... e4 {[%clk 0:05:40.2]} 29.
Ng2 {[%clk 0:07:40.4]} 29... g5 {[%clk 0:04:56.7]} 30. Ne1 {[%clk 0:07:11.2]}
30... Bb3 {[%clk 0:04:34.3]} 31. Rc1 {[%clk 0:07:09.3]} 31... Ba2 {[%clk
0:04:34.8]} 32. dxe4 {[%clk 0:06:42.5]} 32... Rxb2 {[%clk 0:04:34.9]} 33. Rc2
{[%clk 0:06:43.9]} 33... Rxc2 {[%clk 0:04:29.2]} 34. Qxc2 {[%clk 0:06:45.8]}
34... Bb3 {[%clk 0:04:28.1]} 35. Qd3 {[%clk 0:06:45.2]} 35... Bc4 {[%clk
0:04:26.2]} 36. Qc2 {[%clk 0:06:40.6]} 36... Rb3 {[%clk 0:04:24.9]} 37. Nd3
{[%clk 0:05:55.8]} 37... Rc3 {[%clk 0:04:09.5]} 38. Qxa4 {[%clk 0:05:14.3]}
38... Qxe4 {[%clk 0:03:54.5]} 39. Rc1 {[%clk 0:01:09.7]} 39... Bd5 {[%clk
0:02:41.9]} 40. f3 {[%clk 0:00:57]} 40... Qe3+ {[%clk 0:02:40.8]} 41. Kg2 {[%clk
0:00:55.2]} 41... Qxe2+ {[%clk 0:02:40]} 42. Kh3 {[%clk 0:00:50.9]} 42... Be6+
{[%clk 0:02:38.1]} 43. g4 {[%clk 0:00:49.2]} 43... Qxf3# {[%clk 0:02:38]} 0-1

[Event "GrandPrix_30.05"]
[Site "Chess.com"]
[Date "2020.05.30"]
[Round "5"]
[White "HElissalt"]
[Black "DrVelja"]
[Result "0-1"]
[WhiteElo "2072"]
[BlackElo "2265"]
[TimeControl "600+2"]
[EndTime "10:24:22 PDT"]
[Termination "DrVelja won by resignation"]

1. d4 {[%clk 0:10:01.9]} 1... Nf6 {[%clk 0:10:00.3]} 2. c4 {[%clk 0:09:59.6]}
2... g6 {[%clk 0:10:01]} 3. Nc3 {[%clk 0:10:00]} 3... Bg7 {[%clk 0:10:00.9]} 4.
e4 {[%clk 0:10:01.1]} 4... d6 {[%clk 0:10:02.2]} 5. Be2 {[%clk 0:10:02.4]} 5...
O-O {[%clk 0:10:03.3]} 6. Be3 {[%clk 0:10:03.9]} 6... Na6 {[%clk 0:09:56]} 7.
Nf3 {[%clk 0:09:17.8]} 7... e5 {[%clk 0:09:54.6]} 8. d5 {[%clk 0:09:00.8]} 8...
c6 {[%clk 0:09:40.3]} 9. Nd2 {[%clk 0:08:57.5]} 9... Bd7 {[%clk 0:09:10.1]} 10.
O-O {[%clk 0:08:56.9]} 10... c5 {[%clk 0:08:54.7]} 11. a3 {[%clk 0:08:45.5]}
11... Kh8 {[%clk 0:08:55.6]} 12. Rb1 {[%clk 0:08:39.4]} 12... Ng8 {[%clk
0:08:56.3]} 13. b4 {[%clk 0:08:39.6]} 13... b6 {[%clk 0:08:57.4]} 14. Nb5 {[%clk
0:08:21.6]} 14... Bc8 {[%clk 0:06:05.8]} 15. Qc2 {[%clk 0:07:41]} 15... Bh6
{[%clk 0:05:58.7]} 16. Qc3 {[%clk 0:07:41.2]} 16... Bg7 {[%clk 0:05:25.1]} 17.
Nb3 {[%clk 0:07:23.1]} 17... f5 {[%clk 0:05:17.8]} 18. f3 {[%clk 0:07:23]} 18...
Nf6 {[%clk 0:05:01.1]} 19. bxc5 {[%clk 0:07:03.2]} 19... Nxc5 {[%clk 0:04:57.2]}
20. Nxc5 {[%clk 0:07:03.3]} 20... bxc5 {[%clk 0:04:59.1]} 21. exf5 {[%clk
0:06:24.5]} 21... Bxf5 {[%clk 0:04:53.1]} 22. Qd2 {[%clk 0:05:59.2]} 22... Bxb1
{[%clk 0:04:40.9]} 23. Rxb1 {[%clk 0:05:59.4]} 23... a6 {[%clk 0:04:39.6]} 24.
Nc3 {[%clk 0:05:59.3]} 24... Rb8 {[%clk 0:04:41.2]} 25. Rxb8 {[%clk 0:05:07.6]}
25... Qxb8 {[%clk 0:04:40.5]} 26. Bd3 {[%clk 0:05:00.7]} 26... Qb3 {[%clk
0:04:32.5]} 27. Ne4 {[%clk 0:04:58.7]} 27... Nxe4 {[%clk 0:04:30.8]} 28. Bxe4
{[%clk 0:04:59.6]} 28... Qxc4 {[%clk 0:04:26.3]} 29. h4 {[%clk 0:04:57.7]} 29...
Bf6 {[%clk 0:03:46]} 30. h5 {[%clk 0:04:52.7]} 30... gxh5 {[%clk 0:03:45.1]} 31.
Qa5 {[%clk 0:04:44.7]} 31... Qe2 {[%clk 0:02:37.6]} 32. Bf2 {[%clk 0:04:28.3]}
32... Bd8 {[%clk 0:02:10.9]} 33. Qa4 {[%clk 0:04:27.6]} 33... Qb5 {[%clk
0:01:58.1]} 34. Qc2 {[%clk 0:04:28.1]} 34... Qd7 {[%clk 0:01:59.5]} 35. Qe2
{[%clk 0:04:19.8]} 35... a5 {[%clk 0:01:51]} 36. Bd3 {[%clk 0:04:13.1]} 36...
Qg7 {[%clk 0:01:39.2]} 37. g3 {[%clk 0:03:54.8]} 37... h4 {[%clk 0:01:32.7]} 38.
g4 {[%clk 0:03:48.7]} 38... h5 {[%clk 0:00:58.7]} 39. Kh1 {[%clk 0:03:43.4]}
39... hxg4 {[%clk 0:00:57.7]} 40. fxg4 {[%clk 0:03:43.8]} 40... Bg5 {[%clk
0:00:49.9]} 41. Bf5 {[%clk 0:03:40.1]} 41... Qb7 {[%clk 0:00:48.4]} 42. Be3
{[%clk 0:03:27.5]} 42... Qxd5+ {[%clk 0:00:47.8]} 43. Kh2 {[%clk 0:03:18.9]}
43... Qg8 {[%clk 0:00:42.6]} 44. Qd2 {[%clk 0:02:38.2]} 44... Rxf5 {[%clk
0:00:43.7]} 0-1